bitfinex-derivatives/quotes_SOLF0:USTF0_20250425
["timestamp","ask_amount","ask_price","bid_price","bid_amount"]
[1745590401137,31.9,155.02,154.95,1.0]
[1745590401332,6.448,155.01,154.95,1.0]
[1745590401528,31.9,155.02,154.95,1.0]
[1745590401839,6.4483,155.0,154.97,6.4492]
[1745590402041,31.9,155.02,154.95,1.0]
[1745590402841,6.4491,154.98,154.95,7.4501]
[1745590403040,62.0,154.97,154.95,1.0]
[1745590403447,62.0,154.97,154.95,7.45]
[1745590403638,62.0,154.97,154.95,0.9748]
[1745590403946,6.4507,154.94,154.91,6.4517]
[1745590404143,43.60786338,154.96,154.85,511.32225946]
[1745590404349,62.0,154.97,154.87,43.60786338]
[1745590404748,62.0,154.97,154.94,6.4503]
[1745590404949,62.0,154.97,154.9,31.9]
[1745590405553,62.0,154.97,154.91,43.60786338]
[1745590406752,43.60786338,155.05,154.94,43.60786338]
[1745590406955,75.50786338,155.08,154.97,43.60786338]
[1745590408359,75.50786338,155.08,154.96,7.7818]
[1745590408553,75.50786338,155.08,155.0,6.4479]
[1745590408752,75.50786338,155.08,154.96,7.7818]
[1745590409154,75.50786338,155.08,154.97,43.60786338]
[1745590409354,31.9,155.08,154.97,43.60786338]
[1745590409647,6.4454,155.07,154.97,43.60786338]
[1745590409852,62.0,155.06,154.98,3.8383]
[1745590410157,68.4459,155.06,154.98,3.8383]
[1745590410353,62.0,155.06,154.98,3.8383]
[1745590411355,62.0,155.06,155.05,6.4461]
[1745590411550,62.0,155.06,155.02,31.18]
[1745590411845,62.0,155.06,155.03,6.4466]
[1745590412047,62.0,155.06,155.02,31.18]
[1745590415155,62.0,155.06,154.98,31.16]
[1745590415561,6.4467,155.04,154.98,31.16]
[1745590415761,62.0,155.06,154.98,31.16]
[1745590416061,62.0,155.06,154.98,35.2048]
[1745590416362,62.0,155.06,155.0,43.60786338]
[1745590416560,62.0,155.06,155.05,6.4461]
[1745590416758,6.4442,155.1,155.04,31.16]
[1745590417055,6.4436,155.11,155.08,6.4448]
[1745590417254,31.16,155.16,155.06,43.60786338]
[1745590417455,31.16,155.2,155.09,43.60786338]
[1745590417759,31.16,155.2,155.1,31.16]
[1745590418264,391.16,155.24,155.1,31.16]
[1745590418562,43.60786338,155.23,155.1,31.16]
[1745590418962,43.60786338,155.23,155.12,43.60786338]
[1745590419164,43.60786338,155.23,155.13,3.9528]
[1745590419762,6.4415,155.17,155.13,3.9528]
[1745590419962,62.0,155.22,155.13,3.9528]
[1745590420258,6.4407,155.19,155.14,6.4421]
[1745590420560,105.60786338,155.22,155.15,31.16]
[1745590421862,6.4408,155.18,155.15,31.16]
[1745590422262,105.60786338,155.22,155.15,31.16]
[1745590422461,43.60786338,155.19,155.1,3.7751]
[1745590422762,105.60786338,155.22,155.12,31.16]
[1745590423463,6.441,155.18,155.14,6.4421]
[1745590423863,88.76453507,155.22,155.14,6.4421]
[1745590424062,6.4412,155.17,155.13,6.4427]
[1745590424363,88.76453507,155.22,155.12,31.16]
[1745590424566,6.4403,155.19,155.15,6.4416]
[1745590424756,88.76453507,155.22,155.15,6.4416]
[1745590424954,88.76453507,155.22,155.12,31.16]
[1745590425163,6.4415,155.17,155.12,31.16]
[1745590425365,88.76453507,155.22,155.12,31.16]
[1745590426961,62.0,155.22,155.2,6.4398]
[1745590427464,62.0,155.22,155.18,31.14]
[1745590427665,62.0,155.22,155.19,7.9519]
[1745590427965,57.90453507,155.28,155.19,7.9519]
[1745590428364,6.4393,155.22,155.19,7.9519]
[1745590428565,57.90453507,155.28,155.19,14.392]
[1745590428862,6.4399,155.21,155.18,31.14]
[1745590429966,26.76453507,155.25,155.18,31.14]
[1745590430165,57.90453507,155.28,155.18,31.14]
[1745590430465,26.76453507,155.28,155.18,31.14]
[1745590430669,6.4385,155.24,155.19,6.44]
[1745590430970,62.0,155.23,155.19,6.44]
[1745590431267,62.0,155.23,155.18,31.14]
[1745590431567,26.76453507,155.31,155.2,26.76453507]
[1745590432360,26.76453507,155.28,155.18,31.14]
[1745590432971,26.76453507,155.25,155.18,31.14]
[1745590433169,26.76453507,155.28,155.18,31.14]
[1745590434169,26.76453507,155.28,155.18,37.5807]
[1745590434468,62.0,155.27,155.18,37.5807]
[1745590434669,62.0,155.27,155.18,31.14]
[1745590434869,26.76453507,155.23,155.15,463.92]
[1745590435073,26.76453507,155.24,155.15,463.92]
[1745590435368,6.4406,155.19,155.15,463.92]
[1745590435672,6.4406,155.19,155.15,470.3617]
[1745590435871,26.76453507,155.24,155.15,463.92]
[1745590437867,26.76453507,155.24,155.14,45.5342]
[1745590438074,6.4418,155.16,155.14,31.14]
[1745590438371,26.76453507,155.21,155.14,31.14]
[1745590438573,6.4411,155.18,155.14,31.14]
[1745590438766,57.06453507,155.22,155.14,31.14]
[1745590438970,26.76453507,155.19,155.1,30.3]
[1745590439172,6.4427,155.14,155.1,30.3]
[1745590439375,6.4427,155.14,155.1,36.7438]
[1745590439969,26.76453507,155.16,155.1,30.3]
[1745590440275,26.76453507,155.13,155.06,30.3]
[1745590440575,26.76453507,155.1,155.02,30.3]
[1745590441670,6.4451,155.08,155.04,6.4462]
[1745590442077,26.76453507,155.1,155.02,30.3]
[1745590442273,68.4445,155.09,155.04,6.4464]
[1745590442478,62.0,155.09,155.02,30.3]
[1745590442678,6.4464,155.05,155.01,6.4477]
[1745590443173,6.4465,155.04,155.0,6.448]
[1745590443375,26.76453507,155.07,154.97,30.3]
[1745590443574,26.76453507,155.1,154.98,26.76453507]
[1745590443776,6.4445,155.09,155.05,6.4458]
[1745590444478,6.4439,155.11,155.04,30.3]
[1745590444680,30.32,155.15,155.04,30.3]
[1745590444974,30.32,155.15,155.05,6.4459]
[1745590445179,26.76453507,155.13,155.04,30.3]
[1745590445581,6.4452,155.08,155.04,30.3]
[1745590445782,62.0,155.07,155.04,30.3]
[1745590446176,26.76453507,155.13,155.04,30.3]
[1745590447181,30.32,155.15,155.04,57.06453507]
[1745590447382,6.4435,155.12,155.04,57.06453507]
[1745590447582,30.32,155.15,155.04,57.06453507]
[1745590447884,6.4438,155.11,155.07,6.4451]
[1745590448083,30.32,155.15,155.07,6.4451]
[1745590448678,372.875,155.26,155.07,26.76453507]
[1745590448879,30.32,155.24,155.1,26.76453507]
[1745590449079,62.0,155.23,155.15,6.4419]
[1745590449284,62.0,155.23,155.13,26.76453507]
[1745590449484,6.441,155.18,155.14,6.4423]
[1745590449783,57.08453507,155.24,155.11,42.0212]
[1745590450180,6.4414,155.17,155.13,6.4425]
[1745590450483,57.08453507,155.24,155.11,42.0212]
[1745590450783,57.08453507,155.24,155.16,6.4412]
[1745590450983,57.08453507,155.24,155.11,42.0212]
[1745590451379,26.76453507,155.18,155.04,30.3]
[1745590451683,30.3,155.19,155.06,26.76453507]
[1745590451883,30.3,155.19,155.1,6.4437]
[1745590451884,6.4426,155.14,155.1,6.4437]
[1745590452181,30.3,155.19,155.09,30.3]
[1745590452576,62.0,155.18,155.09,30.3]
[1745590452779,62.0,155.18,155.1,7.6141]
[1745590453084,62.0,155.18,155.1,11.5923]
[1745590453484,26.76453507,155.16,155.09,30.3]
[1745590453880,57.06453507,155.19,155.05,36.746]
[1745590453881,26.76453507,155.13,155.05,36.746]
[1745590454083,26.76453507,155.13,155.05,30.3]
[1745590454383,6.4439,155.11,155.07,6.445]
[1745590454581,26.76453507,155.13,155.05,30.3]
[1745590455181,26.76453507,155.16,155.05,30.3]
[1745590455381,6.4439,155.11,155.07,6.4452]
[1745590455680,26.76453507,155.16,155.05,30.3]
[1745590455875,57.06453507,155.19,155.05,57.06453507]
[1745590456592,6.4432,155.12,155.05,57.06453507]
[1745590456986,6.4431,155.13,155.09,6.4444]
[1745590457183,57.06453507,155.19,155.05,57.06453507]
[1745590457685,6.4431,155.13,155.05,57.06453507]
[1745590457887,26.76453507,155.19,155.05,57.06453507]
[1745590458686,6.443,155.13,155.05,57.06453507]
[1745590458987,26.76453507,155.19,155.08,26.76453507]
[1745590459180,26.76453507,155.19,155.05,57.06453507]
[1745590459384,6.4421,155.15,155.05,57.06453507]
[1745590459590,26.76453507,155.19,155.08,26.76453507]
[1745590459786,6.4419,155.16,155.12,6.443]
[1745590460090,62.0,155.15,155.12,30.32]
[1745590460390,68.4422,155.15,155.12,30.32]
[1745590460590,62.0,155.15,155.12,30.32]
[1745590460792,26.76453507,155.22,155.12,30.32]
[1745590460987,26.76453507,155.25,155.12,38.2713]
[1745590461187,26.76453507,155.25,155.12,42.3324]
[1745590461587,390.32,155.27,155.14,26.76453507]
[1745590461783,30.32,155.27,155.14,26.76453507]
[1745590461990,30.32,155.27,155.18,6.4404]
[1745590462187,490.72453507,155.28,155.19,30.32]
[1745590462388,26.76453507,155.28,155.19,30.32]
[1745590462782,26.76453507,155.31,155.2,26.76453507]
[1745590462982,494.16,155.37,155.26,6.4374]
[1745590463190,26.76453507,155.36,155.26,36.7374]
[1745590463588,26.76453507,155.36,155.27,6.4369]
[1745590463793,62.0,155.31,155.26,30.3]
[1745590464091,62.0,155.31,155.27,6.4369]
[1745590464390,62.0,155.31,155.26,30.3]
[1745590464892,62.0,155.31,155.27,6.4369]
[1745590465091,62.0,155.31,155.26,30.3]
[1745590465792,62.0,155.31,155.26,36.7372]
[1745590465994,62.0,155.31,155.26,30.3]
[1745590466394,62.0,155.31,155.23,30.3]
[1745590466395,6.4373,155.27,155.23,30.3]
[1745590466590,62.0,155.31,155.23,30.3]
[1745590467594,6.4374,155.27,155.23,30.3]
[1745590467796,6.4374,155.27,155.23,36.7386]
[1745590468700,6.4374,155.27,155.23,30.3]
[1745590468891,26.76453507,155.3,155.23,30.3]
[1745590469295,6.4377,155.26,155.23,30.3]
[1745590470196,6.4366,155.28,155.23,36.7386]
[1745590470396,26.76453507,155.3,155.23,30.3]
[1745590471397,6.4378,155.25,155.23,30.3]
[1745590471593,26.76453507,155.3,155.23,30.3]
[1745590471894,6.4379,155.25,155.23,30.3]
[1745590472094,62.0,155.29,155.23,30.3]
[1745590472495,6.4381,155.25,155.23,30.3]
[1745590473196,62.0,155.29,155.23,30.3]
[1745590473592,62.0,155.29,155.25,26.76453507]
[1745590473799,6.4348,155.33,155.28,6.4366]
[1745590473997,30.3,155.37,155.29,30.16]
[1745590474293,6.4338,155.35,155.29,30.16]
[1745590474498,34.0958,155.37,155.29,30.16]
[1745590474796,62.0,155.32,155.29,30.16]
[1745590474996,6.4356,155.31,155.29,30.16]
[1745590475191,62.0,155.32,155.29,30.16]
[1745590475392,6.4356,155.31,155.29,30.16]
[1745590475589,62.0,155.32,155.29,30.16]
[1745590476090,6.4358,155.3,155.29,30.16]
[1745590476690,62.0,155.32,155.21,463.86]
[1745590476691,6.4373,155.27,155.25,30.16]
[1745590476998,88.76453507,155.32,155.25,30.16]
[1745590477197,6.4373,155.27,155.25,30.16]
[1745590477390,62.0,155.32,155.25,30.16]
[1745590477595,6.4374,155.26,155.25,30.16]
[1745590477790,88.76453507,155.32,155.25,30.16]
[1745590478301,26.76453507,155.29,155.25,30.16]
[1745590478799,6.4367,155.28,155.25,30.16]
[1745590479298,6.4358,155.3,155.25,30.16]
[1745590479501,26.76453507,155.35,155.25,30.16]
[1745590479697,6.4352,155.32,155.29,6.4361]
[1745590479899,26.76453507,155.35,155.25,30.16]
[1745590480299,6.4352,155.32,155.28,6.4363]
[1745590480799,6.4352,155.32,155.25,30.16]
[1745590480997,26.76453507,155.35,155.25,30.16]
[1745590481203,62.0,155.34,155.25,30.16]
[1745590481603,62.0,155.34,155.27,26.76453507]
[1745590481806,62.0,155.34,155.28,11.3984]
[1745590482004,62.0,155.34,155.32,6.4346]
[1745590482200,62.0,155.34,155.33,30.16]
[1745590482601,6.4331,155.37,155.34,6.4341]
[1745590482796,6.4331,155.37,155.33,30.16]
[1745590483497,62.0,155.36,155.33,30.16]
[1745590483704,4.0446,155.43,155.33,56.92453507]
[1745590483897,56.92453507,155.45,155.33,56.92453507]
[1745590484103,30.16,155.49,155.33,56.92453507]
[1745590484303,26.76453507,155.47,155.36,26.76453507]
[1745590484601,62.0,155.46,155.36,26.76453507]
[1745590485104,6.4296,155.45,155.41,6.4309]
[1745590485304,6.4296,155.45,155.42,30.16]
[1745590485504,62.0,155.46,155.42,30.16]
[1745590486205,62.0,155.46,155.42,56.92453507]
[1745590486405,26.76453507,155.55,155.42,56.92453507]
[1745590486713,11.8995,155.56,155.48,6.428]
[1745590487004,26.76453507,155.6,155.49,30.14]
[1745590487195,26.76453507,155.6,155.52,6.4266]
[1745590487403,30.14,155.64,155.51,26.76453507]
[1745590487604,26.76453507,155.63,155.51,26.76453507]
[1745590487804,64.08771361,155.67,155.61,26.76453507]
[1745590488113,147.57918935,155.69,155.66,26.76453507]
[1745590488302,147.57918935,155.69,155.67,30.14]
[1745590488808,34.57293507,155.79,155.67,30.14]
[1745590489317,62.0,155.78,155.67,30.14]
[1745590489510,26.76453507,155.77,155.67,30.14]
[1745590489711,26.76453507,155.74,155.67,30.14]
[1745590490001,26.76453507,155.72,155.62,463.36]
[1745590490200,26.76453507,155.69,155.6,30.12]
[1745590490397,3.68,155.71,155.62,26.76453507]
[1745590490602,6.42,155.69,155.62,26.76453507]
[1745590490804,3.68,155.71,155.62,26.76453507]
[1745590491008,6.4196,155.7,155.62,26.76453507]
[1745590491307,3.68,155.71,155.64,43.19760696]
[1745590491605,7.8179,155.74,155.65,30.12]
[1745590492606,6.4202,155.68,155.65,30.12]
[1745590492809,62.0,155.68,155.65,30.12]
[1745590495018,30.1,155.85,155.66,43.19760696]
[1745590495208,43.19760696,155.81,155.69,43.19760696]
[1745590495508,6.4168,155.76,155.7,30.1]
[1745590495704,3.7308,155.82,155.7,30.1]
[1745590495909,3.7308,155.82,155.72,43.19760696]
[1745590496211,3.7308,155.82,155.71,3.7433]
[1745590496712,6.4174,155.75,155.71,3.7433]
[1745590496908,3.7308,155.82,155.71,3.7433]
[1745590497109,6.417,155.76,155.71,3.7433]
[1745590497310,3.7308,155.82,155.71,3.7433]
[1745590497508,3.7308,155.82,155.7,30.1]
[1745590497708,43.19760696,155.81,155.7,30.1]
[1745590497910,62.0,155.8,155.7,30.1]
[1745590498113,105.19760696,155.8,155.7,30.1]
[1745590498411,62.0,155.8,155.7,36.5192]
[1745590498608,62.0,155.8,155.7,30.1]
[1745590500408,30.92,155.8,155.7,30.1]
[1745590500608,43.19760696,155.77,155.7,30.1]
[1745590500811,6.4188,155.71,155.7,30.1]
[1745590501012,3.7308,155.82,155.7,30.1]
[1745590501215,6.4172,155.75,155.7,30.1]
[1745590501415,46.92840696,155.82,155.7,30.1]
[1745590501612,46.92840696,155.82,155.7,73.29760696]
[1745590501815,3.7308,155.82,155.7,30.1]
[1745590502010,43.19760696,155.78,155.7,30.1]
[1745590502210,32.02,155.8,155.7,30.1]
[1745590502613,43.19760696,155.77,155.7,30.1]
[1745590503318,43.19760696,155.74,155.66,32.02]
[1745590503817,4.0086,155.76,155.66,32.02]
[1745590504017,32.02,155.8,155.66,32.02]
[1745590504319,43.19760696,155.78,155.66,32.02]
[1745590504816,32.02,155.8,155.67,43.19760696]
[1745590505021,43.19760696,155.79,155.67,43.19760696]
[1745590505217,43.19760696,155.79,155.69,6.4193]
[1745590505412,6.4183,155.73,155.66,32.02]
[1745590505615,43.19760696,155.76,155.66,32.02]
[1745590505918,6.4189,155.71,155.66,32.02]
[1745590506116,47.00370696,155.75,155.66,32.02]
[1745590506819,43.19760696,155.69,155.64,0.30539]
[1745590507113,62.0,155.7,155.64,0.30539]
[1745590507518,43.19760696,155.69,155.64,0.30539]
[1745590508217,62.0,155.7,155.64,0.30539]
[1745590508610,6.4199,155.69,155.64,0.30539]
[1745590508813,43.19760696,155.69,155.64,0.30539]
[1745590509019,43.19760696,155.66,155.64,0.30539]
[1745590509219,33.3,155.7,155.57,37.1934]
[1745590509521,43.19760696,155.63,155.57,33.3]
[1745590509714,6.4237,155.6,155.57,33.3]
[1745590510014,43.19760696,155.63,155.57,33.3]
[1745590510219,6.4237,155.6,155.57,33.3]
[1745590510521,43.19760696,155.63,155.57,33.3]
[1745590510721,43.19760696,155.68,155.49,3.9026]
[1745590510722,6.4242,155.58,155.53,33.3]
[1745590511015,43.19760696,155.57,155.53,33.3]
[1745590511220,43.19760696,155.57,155.49,37.2026]
[1745590511418,43.19760696,155.55,155.49,37.2026]
[1745590511723,43.19760696,155.52,155.45,33.3]
[1745590512122,43.19760696,155.49,155.41,33.3]
[1745590512322,66.0482,155.51,155.41,33.3]
[1745590512522,62.0,155.51,155.41,33.3]
[1745590512723,62.0,155.51,155.41,76.49760696]
[1745590513619,43.19760696,155.49,155.41,33.3]
[1745590513823,43.19760696,155.46,155.41,33.3]
[1745590514024,43.19760696,155.46,155.34,44.31724404]
[1745590514227,43.19760696,155.4,155.34,1.11963708]
[1745590514522,43.19760696,155.43,155.3,76.49760696]
[1745590514723,43.19760696,155.43,155.3,77.61774859]
[1745590515024,6.4315,155.41,155.3,76.49760696]
[1745590515224,43.19760696,155.4,155.3,76.49760696]
[1745590515524,43.19760696,155.4,155.3,33.3]
[1745590515823,3.8424,155.42,155.35,6.4336]
[1745590516020,3.8424,155.42,155.36,33.3]
[1745590516220,3.8424,155.42,155.38,6.4323]
[1745590516424,3.8424,155.42,155.36,33.3]
[1745590516425,47.04000696,155.42,155.36,33.3]
[1745590516627,6.4316,155.41,155.36,33.3]
[1745590516828,62.0,155.4,155.36,33.3]
[1745590517028,43.19760696,155.39,155.25,462.56]
[1745590517220,43.19760696,155.33,155.25,462.56]
[1745590517925,43.19760696,155.27,155.2,1.12071881]
[1745590518126,43.19760696,155.27,155.19,7.37895946]
[1745590518527,43.19760696,155.24,155.19,7.37895946]
[1745590518931,43.19760696,155.27,155.19,7.37895946]
[1745590519825,6.4382,155.24,155.16,33.32]
[1745590520031,43.19760696,155.23,155.15,43.669]
[1745590520228,43.19760696,155.23,155.15,37.2274]
[1745590520428,62.0,155.22,155.15,37.2274]
[1745590520820,6.4395,155.21,155.15,33.34]
[1745590521332,3.7494,155.22,155.15,33.34]
[1745590521832,43.19760696,155.2,155.15,33.34]
[1745590522025,6.4408,155.18,155.13,470.13895946]
[1745590522226,43.19760696,155.2,155.13,470.13895946]
[1745590522430,43.19760696,155.17,155.13,7.37895946]
[1745590523129,49.63790696,155.2,155.13,7.37895946]
[1745590523429,43.19760696,155.2,155.14,6.4424]
[1745590523627,43.19760696,155.27,155.14,43.19760696]
[1745590523826,43.19760696,155.27,155.17,43.19760696]
[1745590524027,62.0,155.26,155.18,33.36]
[1745590524228,43.19760696,155.22,155.18,33.36]
[1745590524430,43.19760696,155.22,155.15,463.26]
[1745590524631,3.8858,155.21,155.12,33.36]
[1745590524934,43.19760696,155.19,155.12,33.36]
[1745590525133,6.4416,155.17,155.12,33.36]
[1745590525734,49.63830696,155.19,155.12,33.36]
[1745590525937,43.19760696,155.19,155.12,33.36]
[1745590526235,43.19760696,155.19,155.12,39.803]
[1745590526435,43.19760696,155.19,155.12,33.36]
[1745590526834,6.4415,155.17,155.12,33.36]
[1745590527230,43.19760696,155.19,155.12,33.36]
[1745590527432,43.19760696,155.13,155.07,463.26]
[1745590527632,43.19760696,155.13,155.04,33.38]
[1745590528029,43.19760696,155.1,155.04,33.38]
[1745590528537,43.19760696,155.1,155.0,33.38]
[1745590528833,7.8995,155.09,155.0,33.38]
[1745590529234,6.4457,155.06,155.0,33.38]
[1745590529534,7.8995,155.09,155.0,33.38]
[1745590529934,6.445,155.08,155.0,33.38]
[1745590530131,7.8995,155.09,155.0,33.38]
[1745590530632,6.445,155.08,155.02,6.4474]
[1745590530834,51.09710696,155.09,155.02,6.4474]
[1745590531034,7.8995,155.09,155.04,6.4462]
[1745590531435,3.8556,155.09,155.01,43.19760696]
[1745590531635,3.8556,155.09,155.06,6.4455]
[1745590531935,3.8556,155.09,155.05,33.4]
[1745590532634,43.19760696,155.14,155.05,33.4]
[1745590532836,47.19520696,155.14,155.05,33.4]
[1745590533530,3.9976,155.14,155.05,33.4]
[1745590533835,33.38,155.16,155.05,33.4]
[1745590533836,43.19760696,155.19,155.07,43.19760696]
[1745590534032,62.0,155.17,155.05,33.4]
[1745590534234,6.4433,155.12,155.06,6.4454]
[1745590534534,62.0,155.17,155.05,33.4]
[1745590534731,6.4424,155.14,155.08,6.4448]
[1745590534928,62.0,155.17,155.05,33.4]
[1745590535332,62.0,155.17,155.08,6.4446]
[1745590535536,62.0,155.17,155.05,33.4]
[1745590535830,6.4418,155.16,155.1,6.4438]
[1745590536035,62.0,155.17,155.11,33.4]
[1745590536435,6.4421,155.15,155.11,33.4]
[1745590536636,62.0,155.17,155.11,33.4]
[1745590536935,6.4416,155.16,155.11,39.8436]
[1745590537239,62.0,155.17,155.11,33.4]
[1745590538332,6.4417,155.16,155.11,33.4]
[1745590538538,62.0,155.17,155.11,33.4]
[1745590538835,7.8762,155.18,155.14,6.4421]
[1745590539133,7.8762,155.18,155.12,6.4431]
[1745590539134,6.4415,155.17,155.12,6.4431]
[1745590539337,7.8762,155.18,155.11,33.4]
[1745590539640,6.4416,155.16,155.11,33.4]
[1745590540137,7.8762,155.18,155.11,33.4]
[1745590540339,6.4416,155.16,155.11,39.8434]
[1745590540633,43.19760696,155.17,155.06,33.7]
[1745590540837,6.4439,155.11,155.06,40.1454]
[1745590541037,43.19760696,155.14,155.06,40.1454]
[1745590541238,6.4438,155.11,155.06,40.1454]
[1745590541640,43.19760696,155.14,155.06,40.1454]
[1745590541846,62.0,155.13,155.07,6.4453]
[1745590542139,68.4428,155.13,155.07,6.4453]
[1745590542335,62.0,155.13,155.06,33.7]
[1745590542542,43.19760696,155.11,155.01,33.7]
[1745590542739,6.4462,155.05,155.01,33.7]
[1745590542940,43.19760696,155.08,155.01,33.7]
[1745590543642,43.19760696,155.08,154.99,463.44]
[1745590543941,37.6984,155.12,154.99,463.44]
[1745590544141,43.19760696,155.1,155.01,6.4475]
[1745590544333,43.19760696,155.1,155.0,43.19760696]
[1745590544532,37.6984,155.12,155.05,6.4459]
[1745590544845,463.98,155.15,155.03,76.91760696]
[1745590545043,463.98,155.15,155.07,6.445]
[1745590545641,62.0,155.14,155.07,6.445]
[1745590545844,6.443,155.13,155.08,6.4449]
[1745590546043,65.9608,155.14,155.08,33.72]
[1745590546640,65.9608,155.14,155.1,6.4438]
[1745590547044,72.4032,155.14,155.09,6.4443]
[1745590547245,65.9608,155.14,155.08,33.72]
[1745590548147,43.19760696,155.11,154.99,463.44]
[1745590548345,3.6951,155.1,155.01,33.72]
[1745590549046,10.1392,155.1,155.05,6.4459]
[1745590549357,10.1392,155.1,155.01,33.72]
[1745590549552,10.1392,155.1,155.01,76.91760696]
[1745590549744,109.15840696,155.14,155.04,43.19760696]
[1745590550147,109.15840696,155.14,155.05,6.446]
[1745590550448,109.15840696,155.14,155.02,47.13970696]
[1745590550741,6.443,155.13,155.06,33.72]
[1745590550946,65.9608,155.14,155.06,33.72]
[1745590551142,65.9608,155.14,155.1,6.444]
[1745590551545,62.0,155.14,155.06,37.7911]
[1745590551846,62.0,155.14,155.11,6.4434]
[1745590552047,62.0,155.14,155.06,37.7911]
[1745590552246,62.0,155.14,155.12,6.4432]
[1745590552548,10.4393,155.18,155.08,43.19760696]
[1745590552744,12.875,155.26,155.15,6.4417]
[1745590552745,3.9189,155.22,155.15,6.4417]
[1745590552946,3.9189,155.22,155.13,33.72]
[1745590553345,3.9189,155.22,155.13,40.1627]
[1745590553648,43.19760696,155.17,155.09,33.72]
[1745590553946,3.9715,155.16,155.06,37.7911]
[1745590554141,3.9715,155.16,155.06,33.72]
[1745590554338,43.19760696,155.14,155.06,33.72]
[1745590554748,6.4448,155.09,155.06,33.72]
[1745590554949,3.9862,155.13,155.06,33.72]
[1745590555149,3.8889,155.12,155.06,33.72]
[1745590555550,62.0,155.11,155.06,33.72]
[1745590555848,62.0,155.11,155.04,29.51583786]
[1745590556151,105.19760696,155.11,155.04,29.51583786]
[1745590557049,6.4461,155.05,155.04,29.51583786]
[1745590557257,43.19760696,155.08,155.03,7.37895946]
[1745590557456,3.7794,155.07,155.03,7.37895946]
[1745590558351,6.4465,155.04,155.03,7.37895946]
[1745590558660,6.4465,155.04,155.03,1.25005946]
[1745590558957,43.19760696,155.06,155.02,16.0079784]
[1745590559153,6.447,155.03,155.02,3.7499784]
[1745590559653,3.7794,155.07,155.02,3.7499784]
[1745590560158,6.447,155.03,155.02,3.7499784]
[1745590560549,62.0,155.03,154.98,33.72]
[1745590560754,62.0,155.03,154.98,76.91760696]
[1745590560955,33.72,155.08,154.98,76.91760696]
[1745590561157,6.4469,155.04,154.99,6.4483]
[1745590561660,33.72,155.14,155.01,43.19760696]
[1745590561861,33.72,155.14,155.04,43.19760696]
[1745590562056,33.72,155.14,155.04,83.36390696]
[1745590562361,76.91760696,155.14,155.0,76.91760696]
[1745590562561,76.91760696,155.14,155.01,6.4476]
[1745590562761,6.446,155.06,155.01,6.4476]
[1745590562958,76.91760696,155.14,155.0,76.91760696]
[1745590563652,76.91760696,155.14,155.03,43.19760696]
[1745590563857,62.0,155.13,155.03,43.19760696]
[1745590564059,62.0,155.13,155.04,8.0192]
[1745590564259,6.4435,155.12,155.05,33.72]
[1745590564454,43.19760696,155.17,155.06,43.19760696]
[1745590564759,6.4422,155.15,155.06,43.19760696]
[1745590564964,37.7582,155.18,155.07,3.7321]
[1745590565156,4.0382,155.18,155.09,43.19760696]
[1745590565357,6.4414,155.17,155.12,6.4432]
[1745590565565,33.72,155.22,155.12,43.19760696]
[1745590565765,33.72,155.22,155.13,8.0192]
[1745590565964,43.19760696,155.19,155.1,33.72]